Cogmind - Beta 13 @@@ ROGUE MODE // 2024.06.16 @ 19:16:06 Player: celerysam Result: Destroyed by G-34 Mercenary with Small Laser Performance ------------- Evolutions (1) 500 Regions Visited (2) 400 Robots Destroyed (16) 80 Value Destroyed (416) 416 Prototype IDs (0) 0 Alien Tech Used (0) 0 Bonus (0) 0 TOTAL SCORE: 1396 Bonus ------- None Cogmind --------- Core Integrity 0/400 Matter 79/300 Energy 100/100 System Corruption 0% Temperature Cool (12) Movement Treading (160) Location -9/Materials Parts ------- > --- POWER (1) -------- (None) > --- PROPULSION (4) --- Light Treads Light Treads > --- UTILITY (2) ------ Large Storage Unit > --- WEAPON (2) ------- Heavy Flail > --- INVENTORY (15) --- Ion Engine Ion Engine Ion Engine Wheel Wheel Armored Wheel Improved Flight Unit Small Storage Unit Medium Matter Pod (25) Mining Laser Peak State ------------ > --- POWER ------------ Ion Engine > --- PROPULSION ------- Aluminum Leg Aluminum Leg Aluminum Leg Aluminum Leg > --- UTILITY ---------- Large Storage Unit Light Armor Plating > --- WEAPON ----------- Assault Rifle Light Cannon > --- INVENTORY -------- Ion Engine Ion Engine Ion Engine Light Treads Light Treads Wheel Wheel Improved Flight Unit Small Storage Unit Medium Matter Pod Medium Laser Light EM Pulse Cannon Assault Rifle Mining Laser [Rating: 10] Favorites ----------- Power Ion Engine Engine Ion Engine Propulsion Compact Wheel Treads Light Treads Leg Aluminum Leg Wheel Compact Wheel Utility Large Storage Unit Device Heat Sink Storage Large Storage Unit Protection Light Armor Plating Weapon Assault Rifle Energy Gun Medium Laser Energy Cannon Light EM Pulse Cannon Ballistic Gun Assault Rifle Ballistic Cannon Light Cannon Impact Weapon Heavy Flail Build | -11 -10 -9 ------- Run | Yrd Mat Mat Slots Evolved 2 | . . 2 Power . | . . . Propulsion 2 | . . 2 Utility . | . . . Weapon . | . . . Parts Attached 42 | 5 20 17 Power 5 | 2 2 1 Engine 5 | 2 2 1 Core . | . . . Reactor . | . . . Propulsion 18 | 2 7 9 Treads 5 | . . 5 Leg 4 | . . 4 Wheel 9 | 2 7 . Hover . | . . . Flight . | . . . Utility 5 | 1 3 1 Device 1 | . 1 . Storage 2 | 1 1 . Processor . | . . . Hackware . | . . . Protection 2 | . 1 1 Artifact . | . . . Weapon 14 | . 8 6 Energy Gun 2 | . 2 . Energy Cannon 1 | . . 1 Ballistic Gun 9 | . 6 3 Ballistic Cannon 1 | . . 1 Launcher . | . . . Special Weapon . | . . . Impact Weapon 1 | . . 1 Slashing Weapon . | . . . Piercing Weapon . | . . . Special Melee Weapon . | . . . Unidentified Prototypes . | . . . Parts Lost 14 | . 1 13 Power 2 | . . 2 Propulsion 6 | . . 6 Utility 2 | . 1 1 Weapon 4 | . . 4 Highest Loss Streak 11 | . 1 11 To Critical Strikes . | . . . Average Slot Usage (%) 82 | . 89 68 Engine 11 | . 12 8 Treads 4 | . . 12 Leg 6 | . . 19 Wheel 18 | . 27 . Device 4 | . 6 . Storage 13 | . 14 11 Protection 1 | . . 3 Energy Gun 8 | . 13 . Ballistic Gun 11 | . 14 6 Ballistic Cannon 1 | . . 5 Naked Turns . | . . . Heaviest Build 34 | 10 34 33 Greatest Support 80 | 32 32 80 Greatest Overweight (x) 10 | . 7 10 Average Overweight (x) . | . . . Largest Inventory Capacity 15 | 8 15 15 Average Capacity 14 | 7 14 15 Most Carried 15 | 8 15 15 Average Carried 12 | 4 13 13 Final Capacity 15 | 8 15 15 Final Carried 15 | 8 15 10 Class Distribution -------------------- 100% | Mutant Dominant Class ---------------- Mutant | -10/Materials Mutant | -9/Materials Resources | -11 -10 -9 ----------- Run | Yrd Mat Mat Matter Collected 613 | 176 241 196 Remotely . | . . . Salvage Created 448 | . 338 110 Parts 29 | . 21 8 Haulers Intercepted . | . . . Recyclers Shooed . | . . . Parts Field Recycled . | . . . Retrieved Matter . | . . . Parts Self-Destructed . | . . . Prevented . | . . . Kills | -11 -10 -9 ------- Run | Yrd Mat Mat Combat Hostiles Destroyed 15 | . 10 5 Guns 11 | . 10 1 Cannons 4 | . . 4 Classes Destroyed 4 | . 3 1 Watcher 1 | . 1 . Swarmer 6 | . 3 3 Grunt 8 | . 7 1 Sentry 1 | . . 1 Best Kill Streak 3 | . 3 2 Combat Bots Only 3 | . 3 2 Max Kills in Single Turn 1 | . 1 1 Gunslinging . | . . . Exploded . | . . . Melee . | . . . Uniques/NPCs Destroyed . | . . . Combat | -11 -10 -9 -------- Run | Yrd Mat Mat Hostile Shots Fired 262 | . 48 214 Missed 61 | . 14 47 Damage Taken 2389 | . 370 2019 Core 547 | . 144 403 Absorbed by Shields . | . . . Core Remaining (%) 71 | 100 42 . Volleys Fired 64 | . 35 29 Largest 2 | . 2 2 Hottest 70 | . 70 58 Shots Fired 125 | . 70 55 Gun 97 | . 70 27 Cannon 28 | . . 28 Launcher . | . . . Special . | . . . Kinetic 88 | . 35 53 Thermal 35 | . 35 . Explosive . | . . . Electromagnetic 2 | . . 2 Robot Hit Streak 7 | . 7 5 Robot Miss Streak 7 | . 3 7 Penetration Max . | . . . Secondary Targets 3 | . 3 . Max Gunslinging Chain 1 | . 1 . Shots Hit Robots 70 | . 39 31 Core Hits 30 | . 20 10 Critical Kills . | . . . Critical Parts Destroyed . | . . . Critical Strikes 5 | . 4 1 Burn 4 | . 4 . Blast 1 | . . 1 Melee Attacks 3 | . . 3 Impact 3 | . . 3 Slashing . | . . . Piercing . | . . . Sneak Attacks . | . . . Combat Hostiles . | . . . Follow-up Attacks . | . . . Damage Inflicted 1073 | . 524 549 Guns 659 | . 515 144 Cannons 316 | . . 316 Explosions . | . . . Melee 72 | . . 72 Ramming 26 | . 9 17 Kinetic 687 | . 268 419 Thermal 247 | . 247 . Explosive . | . . . Electromagnetic 41 | . . 41 Impact 72 | . . 72 Slashing . | . . . Piercing . | . . . Highest Corruption . | . . . Average Corruption . | . . . Corruption Purged . | . . . Corruption Blocked . | . . . Overload Shots . | . . . Overflow Damage . | . . . Projectiles . | . . . Explosions . | . . . Melee . | . . . Knockbacks 2 | . . 2 Impact . | . . . Kinetic 2 | . . 2 Secondary . | . . . Self-Inflicted Damage 4 | . 4 . Shots . | . . . Rammed 9 | . 1 8 Targets Rammed 10 | . 1 9 Kicked 1 | . . 1 Crushed . | . . . Highest Temperature 46 | . 21 46 Average Temperature 15 | . 9 16 Received Heat Transfer 933 | . 156 777 Siege Activations . | . . . Robots Corrupted . | . . . Combat Hostiles . | . . . Parts Fried . | . . . Impact Corruptions . | . . . Robots Melted . | . . . Combat Hostiles . | . . . Parts Melted 2 | . 2 . Heat Transferred 1036 | . 1036 . Parts Sabotaged . | . . . Parts Stolen . | . . . Parts Stripped . | . . . Power Chain Reactions . | . . . Alert | -11 -10 -9 ------- Run | Yrd Mat Mat Peak Influence 307 | . 307 223 Initial 78 | . . 78 Average 121 | . 121 142 Maximum Alert Level 1 | . 1 1 Low Security (%) 84 | 100 81 87 Level 1 15 | . 18 12 Level 2 . | . . . Level 3 . | . . . Level 4 . | . . . Level 5 . | . . . High Security . | . . . Max Security . | . . . Squads Dispatched 4 | . 3 1 Investigation 2 | . 1 1 Extermination . | . . . Reinforcement 2 | . 2 . Assault . | . . . Garrison . | . . . Intercept . | . . . Searches Triggered . | . . . Construction Impeded . | . . . Haulers Reinforced . | . . . Active Scanning Responses . | . . . Cargo Convoy Interrupts . | . . . Stealth | -11 -10 -9 --------- Run | Yrd Mat Mat Distress Signals 3 | . 2 1 Communications Jammed . | . . . Distress Signals . | . . . Times Spotted 32 | . 19 13 Peak Tracking Total 5 | . 5 5 Tactical Retreats 1 | . 1 . Traps | -11 -10 -9 ------- Run | Yrd Mat Mat Traps Triggered 6 | . 6 . Indirectly . | . . . Trap Hack Attempts . | . . . Triggered . | . . . Disarmed . | . . . Reprogrammed . | . . . Reused . | . . . Traps Extracted . | . . . Installed . | . . . Triggered . | . . . Machines | -11 -10 -9 ---------- Run | Yrd Mat Mat Machines Disabled 1 | . . 1 Max in Single Turn 1 | . . 1 Machines Repaired . | . . . Machines Dismantled . | . . . Machines Sabotaged . | . . . Overloaded Fab Kills . | . . . Hacking | -11 -10 -9 --------- Run | Yrd Mat Mat Machines Accessed 2 | . 1 1 Terminals 2 | . 1 1 Fabricators . | . . . Repair Stations . | . . . Recycling Units . | . . . Scanalyzers . | . . . Garrison Access . | . . . Total Hacks 4 | . 1 3 Successful 2 | . 1 1 Failed 2 | . . 2 Catastrophic 1 | . . 1 Database Lockouts . | . . . Manual . | . . . Terminals 4 | . 1 3 Fabricators . | . . . Repair Stations . | . . . Recycling Units . | . . . Scanalyzers . | . . . Garrison Access . | . . . Terminal Hacks 2 | . 1 1 Record 1 | . . 1 Robot Analysis 1 | . 1 . Fabricator Hacks . | . . . Repair Station Hacks . | . . . Recycling Unit Hacks . | . . . Scanalyzer . | . . . Garrison Access Hacks . | . . . Unauthorized Hacks . | . . . Terminals . | . . . Fabricators . | . . . Repair Stations . | . . . Recycling Units . | . . . Scanalyzers . | . . . Garrison Access . | . . . Data Cores Recovered . | . . . Used . | . . . Hacking Detections 1 | . . 1 Full Trace Events 1 | . . 1 Feedback Events . | . . . Feedback Blocked . | . . . Robot Schematics Acquired . | . . . Robots Built . | . . . Authchips . | . . . Time . | . . . Total Robot Build Rating . | . . . Part Schematics Acquired . | . . . Parts Built . | . . . Authchips . | . . . Time . | . . . Total Part Build Rating . | . . . Parts Repaired . | . . . Time . | . . . Parts Recycled . | . . . Recycled Matter . | . . . Retrieved Matter . | . . . Retrieved Components . | . . . Parts Scanalyzed . | . . . Part Schematics Acquired . | . . . Parts Damaged . | . . . Bothacking | -11 -10 -9 ------------ Run | Yrd Mat Mat Used RIF Installer . | . . . Robots Hacked . | . . . Non-combat . | . . . Combat . | . . . Robot Hacks Applied . | . . . Relay Couplers Released . | . . . Fabnet Peak Effective % . | . . . Robots Rewired . | . . . Allies Hacked . | . . . Hacks Repelled . | . . . Allies | -11 -10 -9 -------- Run | Yrd Mat Mat Total Allies . | . . . Largest Group . | . . . Highest-Rated Group . | . . . Highest-Rated Ally . | . . . Total Orders . | . . . Ally Attacks . | . . . Total Damage . | . . . Kills . | . . . Allies Corrupted . | . . . Allies Melted . | . . . Intel | -11 -10 -9 ------- Run | Yrd Mat Mat Robot Analysis Total 1 | . 1 . Derelict Logs Recovered . | . . . Drone Launches . | . . . Drone Recoveries . | . . . Exploration | -11 -10 -9 ------------- Run | Yrd Mat Mat Turns Passed 1110 | 57 701 352 Spaces Moved 704 | 41 521 142 Core 6 | 3 1 2 Treads 73 | . . 73 Legs 67 | . . 67 Wheels 558 | 38 520 . Hover . | . . . Flight . | . . . Fastest Speed 50 | 50 80 120 Average Speed 108 | 96 98 150 Slowest Speed 550 | 100 400 550 Overloaded Moves . | . . . Propulsion Burnouts . | . . . Robots Hopped . | . . . Cave-ins Triggered . | . . . Exploration Rate (%) 26 | 4 65 10 Regions Visited 2 Branch Regions . Pre-discovered Areas . | . . . Known Exits Taken . | . . . Unknown Exits Taken 2 | 1 1 . Scrap Searched . | . . . Spaces Dug . | . . . Terrain Destroyed . | . . . Melee . | . . . Projectile . | . . . AOE . | . . . Terrain Rammed . | . . . Walls Destroyed . | . . . Machines Disabled . | . . . Actions | -11 -10 -9 --------- Run | Yrd Mat Mat Total 905 | 57 637 211 Wait 43 | . 41 2 Move 702 | 40 520 142 Hop . | . . . Pick Up 33 | 12 14 7 Fast Attach 10 | . 8 2 Attach 21 | 4 7 10 Detach 1 | . 1 . Swap 11 | 1 5 5 Drop 7 | . 5 2 Fire 64 | . 35 29 Melee 3 | . . 3 Ram 1 | . 1 . Kick 1 | . . 1 Crush 8 | . . 8 Escape Stasis . | . . . Rewire . | . . . Trap . | . . . Miscellaneous . | . . . Route ------- -11/Scrapyard -10/Materials (discovered 2 exits: *Mat / [*Min]) -9/Materials History --------- Turn | Location | Event 30 | -11/Scrapyard | Discovered new exit (range 15) 58 | -11/Scrapyard | Entered Materials 300 | -10/Materials | Build established: Mutant 366 | -10/Materials | Discovered new exit (range 13) 450 | -10/Materials | Core integrity fell below 50% 585 | -10/Materials | Discovered new exit (range 5) 759 | -10/Materials | Entered another Materials area 759 | -9/Materials | Evolved 2 slots: Propulsion x2 957 | -9/Materials | Core integrity fell below 50% 1042 | -9/Materials | Lost 11 parts (1p5n1u4w) 1051 | -9/Materials | Core integrity fell below 20% 1111 | -9/Materials | Destroyed by G-34 Mercenary with Small Laser Last Messages --------------- 00964_ K-01 Serf collects debris. 00967_ Lgt. EM Pulse Cannon destroyed. 00967_ R-06 Scavenger collects Lgt. Armor Plating. 00970_ Acquired Lgt. Treads. 00971_ R-06 Scavenger collects Med. Laser. 00976_ Acquired Lgt. Treads. 00977_ Acquired 1 matter. 00980_ K-01 Serf collects debris. 00989_ Assault Rifle destroyed. 00990_ Slammed into G-34 Mercenary. 01011_ Lgt. Treads destroyed. 01034_ M-13 Machinist repairs G-34 Mercenary. 01036_ M-13 Machinist repairs Y-45 Defender. 01041_ Acquired 13 matter. 01047_ Acquired 4 matter. 01048_ Lgt. Treads destroyed. 01102_ Acquired Hvy. Flail. 01104_ Lgt. Treads severed. 01107_ Critical hit (Burn: +37). 01110_ Imp. Ion Engine destroyed. Map ----- +----------------------------------------------------+ | ???????????????????????????????# " " #??????????? | | ???????????????????????????????# "T" #??????????? | | ???????????????????????????????# """ #??????????? | | ???????????????????????????????# #??????????? | | ???????????????????????????????#####+##??????????? | | ???????????????????????????????????# #???????????? | | ???????????????????????????????????# #???????????? | | ???????????????????????????????????# #???????????? | | ???????????????????????????????????# #?#########?? | | ??????????????????????????########## #?# #?? | | ??????????????????????????# # #?# #?? | | ??????????????????????????# # ### #?? | | ??????????????????????????# """ + + #?? | | ??????????????????????????# """"" # ## #?? | | ??????????????????????????# """" # ## #?? | | ??????????????????????????# """ " + ## #?? | | ??????????????????????????# " # ## + | | ??????????????????????????# # ## ## | | ??????????????????????????# # ## !#?? | | ??????????????? ?????????### ###### ## #?? | | ?????????????? ###+############ ##+######?? | | ?????????????? mY | | ??????????????? g g | | ??????????????????????##g ##### ########## | | ???????????????????????# l #???##+###?????????? | | ???????????????????????#/@!!!!#??????????????????? | | ???????????????????????#//!!!!#??????????????????? | | ???????????????????????########??????????????????? | | ?????????????????????????????????????????????????? | | ?????????????????????????????????????????????????? | | ?????????????????????????????????????????????????? | | ?????????????????????????????????????????????????? | | ?????????????????????????????????????????????????? | | ?????????????????????????????????????????????????? | | ?????????????????????????????????????????????????? | | ?????????????????????????????????????????????????? | | ?????????????????????????????????????????????????? | | ?????????????????????????????????????????????????? | | ?????????????????????????????????????????????????? | | | | | | | | | | | | | | | | | | | | | | | +----------------------------------------------------+ Best States ------------- Heat Dissipation 35 Energy Generation 12 Energy Capacity 265 Matter Stores 300 Matter Capacity 300 Sight Range 16 Terrain Scan Density 10 Armor Coverage 150 Evasion (%) 55 Recoil Reduction 4 Item Schematics ----------------- None Robot Schematics ------------------ None Fabricated ------------ Nothing Alien Tech Used ----------------- None Achievements -------------- None Challenges ------------ None Game ------ Seed TitaniumCloakingKit Manual? 0 Play Time 00:17:24 Cumulative 48.4 hours Start 2024.06.16 @ 19:00:09 End 2024.06.16 @ 19:16:06 Sessions 1 Manual Loads 0 Difficulty Rogue Special Mode None Game No. 73 Rogue 73 Adventurer 0 Explorer 0 Win Type - Total 0 Types 0/0/0/0/0/0/0/0/0 Lore% 25 Gallery% 39 Achievement% 28 Wizard Run 0 Options --------- Layout 0 ASCII 0 Keyboard 0 Movement Mouse Keybinds 0 Fullscreen 1 Font 24/Smallcaps Map View 76x50 Zoom Use 0% Tactical HUD 1 Map Filters NONE Filters NONE Steam 1 RUN: 9f29ea33-2a44-4bce-871c-47c7381dbbd7